Cogmind - Beta 15 @@@ ROGUE MODE // 2025.05.21 @ 16:37:23 Player: McSaucyNugget Result: Destroyed by G-67 Veteran with Field Laser Performance ------------- Evolutions (6) 3000 Regions Visited (9) 1800 Robots Destroyed (97) 485 Value Destroyed (4000) 4000 Prototype IDs (31) 620 Alien Tech Used (0) 0 Bonus (5140) 5140 TOTAL SCORE: 15045 Bonus ------- Triggered High Security 500 High Alert Combat Kills 1132 Follower Combat Kills 1989 Registered with UFD 300 Met Optimus in HQ 500 Built Enhanced Grunts 300 A7 Reached Mainframe 300 Met R17 at Cetus 500 Friendly Fire -381 Cogmind --------- Core Integrity 0/1150 Matter 25/300 Energy 100/100 System Corruption 7% Temperature Cool (23) Movement Core (50) Location -4/Factory Parts ------- > --- POWER (2) -------- (None) > --- PROPULSION (6) --- (None) > --- UTILITY (8) ------ Improved Signal Interpreter System Shield > --- WEAPON (3) ------- (None) > --- INVENTORY (5) ---- Advanced Cooling System Medium Storage Unit Improved Sensor Array Advanced Drone Bay (2/2) Peak State ------------ > --- POWER ------------ Reinforced Fission Core Quantum Reactor > --- PROPULSION ------- Advanced Medium Treads Centrium Heavy Treads Centrium Heavy Treads > --- UTILITY ---------- Advanced Cooling System High-capacity Storage Unit Experimental Sensor Array Improved Signal Interpreter Improved Medium Armor Plating Centrium Medium Armor Plating Hacking Suite System Shield > --- WEAPON ----------- Advanced Variable Charge Gun Railgun Advanced KE Penetrator > --- INVENTORY -------- Quantum Reactor Heavy Treads Heavy Treads Gyrokinetic Inverter Improved Linear Gravjet Advanced Heat Sink Medium Storage Unit Improved Sensor Array Improved Target Analyzer Layered Heavy Armor Plating Hacking Suite Advanced Hacking Suite Advanced Variable Charge Gun Matter Neutralizer Hardcell Cannon Scatter Rocket Array CPS Tube [Rating: 130] Favorites ----------- Power Ion Engine Engine Ion Engine Power Core Light Nuclear Core Reactor Quantum Reactor Propulsion Light Treads Treads Light Treads Leg Carbon-fiber Leg Wheel Armored Wheel Hover Unit Antigrav System Flight Unit Xenon Bombardment Thruster Utility System Shield Device Experimental Sensor Array Storage Large Storage Unit Processor Enhanced Optical Array Hackware System Shield Protection Scrap Shield Weapon Battle Cannon Energy Gun Advanced Variable Charge Gun Energy Cannon Subdweller Beam Cannon Ballistic Gun Advanced KE Penetrator Ballistic Cannon Battle Cannon Launcher Subdweller Shrapnel Launcher Special Weapon Junk Cannon Slashing Weapon Companion Sword Build | -11 -10 -10 -9 -9 -6 -6 -6 -5 -4 ------- Run | Yrd Mat Sub Rec Scr Fac Ext Cet Fac Fac Slots Evolved 12 | . . . . . 8 . . 2 2 Power 1 | . . . . . 1 . . . . Propulsion 4 | . . . . . 3 . . 1 . Utility 6 | . . . . . 4 . . . 2 Weapon 1 | . . . . . . . . 1 . Parts Attached 103 | 8 2 7 3 3 26 24 11 6 13 Power 15 | 1 . 1 . . 4 4 2 1 2 Engine 8 | 1 . 1 . . 2 4 . . . Core 3 | . . . . . 2 . . . 1 Reactor 4 | . . . . . . . 2 1 1 Propulsion 37 | 3 . . 3 2 7 15 2 . 5 Treads 13 | 2 . . 1 1 1 5 2 . 1 Leg 11 | . . . . . 1 10 . . . Wheel 6 | 1 . . 2 . 3 . . . . Hover 5 | . . . . 1 . . . . 4 Flight 2 | . . . . . 2 . . . . Utility 31 | 2 1 1 . . 13 4 2 4 4 Device 11 | 1 . . . . 6 1 . 2 1 Storage 5 | 1 1 . . . . 1 . 1 1 Processor 3 | . . . . . 1 . 1 . 1 Hackware 4 | . . . . . 3 1 . . . Protection 8 | . . 1 . . 3 1 1 1 1 Artifact . | . . . . . . . . . . Weapon 20 | 2 1 5 . 1 2 1 5 1 2 Energy Gun 2 | 1 . . . . . . 1 . . Energy Cannon 2 | . . 2 . . . . . . . Ballistic Gun 5 | 1 . 1 . . . . 1 1 1 Ballistic Cannon 5 | . 1 1 . . 1 . 2 . . Launcher 2 | . . 1 . . . 1 . . . Special Weapon 3 | . . . . . 1 . 1 . 1 Impact Weapon . | . . . . . . . . . . Slashing Weapon 1 | . . . . 1 . . . . . Piercing Weapon . | . . . . . . . . . . Special Melee Weapon . | . . . . . . . . . . Unidentified Prototypes 8 | . . . . 1 2 1 4 . . Corrupted Parts 5 | . . . . . . 1 4 . . System Corruption 30 | . . . . . . 5 25 . . Parts Lost 41 | . 2 2 . . 14 6 2 1 14 Power 9 | . . 1 . . 3 3 . . 2 Propulsion 18 | . 1 1 . . 6 2 2 . 6 Utility 9 | . . . . . 3 1 . 1 4 Weapon 5 | . 1 . . . 2 . . . 2 Highest Loss Streak 10 | . 1 1 . . 10 2 2 1 7 To Critical Strikes . | . . . . . . . . . . Average Backups 7 | 3 5 4 5 6 6 7 9 11 12 Power . | . 1 . . . . . . 1 1 Propulsion 1 | 2 3 1 1 1 . 1 . . 2 Utility 2 | . . 2 3 3 1 2 3 4 5 Weapon 1 | . . . 1 1 2 1 4 3 2 Tool/Special . | . . . . . . . . . . Unused Backups 23 | . . 5 . . 1 2 . 2 13 Power . | . . . . . . . . . . Propulsion 8 | . . 4 . . . 1 . . 3 Utility 9 | . . 1 . . . 1 . 2 5 Weapon 5 | . . . . . 1 . . . 4 Tool/Special 1 | . . . . . . . . . 1 Average Slot Usage (%) 77 | . 99 84 80 82 49 76 81 75 72 Engine 8 | . 14 13 14 14 3 5 7 3 . Reactor 1 | . . . . . . . 4 6 7 Treads 11 | . 25 13 2 14 . 6 11 11 10 Leg 1 | . . . . . . 12 4 . . Wheel 7 | . 2 14 20 13 1 . . . . Device 4 | . 14 . . . 12 8 . 2 7 Storage 3 | . 14 . . 5 3 3 6 5 4 Processor 2 | . . . . . 3 6 6 2 4 Hackware 4 | . . . . . 3 11 13 11 9 Protection 8 | . . 13 14 8 3 7 11 10 8 Energy Gun 1 | . 12 . . . . . . 5 3 Energy Cannon 2 | . . 12 . . . . . . . Ballistic Gun 2 | . 9 1 . . . . 4 10 7 Ballistic Cannon 6 | . 6 12 14 11 . . 6 . . Launcher 3 | . . . 14 11 . . . . . Slashing Weapon 1 | . . . . 2 4 6 . . . Peak Build Rating 130 | 7 8 12 14 18 56 60 94 106 130 Average Rating 39 | 5 7 10 13 14 40 47 85 100 105 On Entrance 36 | . 7 7 11 14 17 52 60 94 106 Naked Turns . | . . . . . . . . . . Heaviest Build 121 | 14 31 35 34 36 44 43 67 102 121 Greatest Support 190 | 40 40 10 24 23 32 89 160 160 190 Greatest Overweight (x) 13 | . 3 3 3 11 13 1 . . 1 Average Overweight (x) 1 | . . 2 1 1 . . . . . Largest Inventory Capacity 20 | 8 15 15 5 15 15 10 10 20 20 Average Capacity 9 | 7 13 5 5 9 11 7 10 14 17 Most Carried 20 | 4 8 7 5 12 15 10 10 17 20 Average Carried 7 | 3 5 4 5 6 7 7 9 12 14 Final Capacity 20 | 8 15 5 5 15 5 10 10 20 5 Final Carried 17 | 4 7 5 5 12 5 9 10 17 5 Class Distribution -------------------- 63% | Mutant 12% | Scavenger-Tank 11% | Scavenger-Mutant 6% | Hacker-Mutant Dominant Class ---------------- Mutant | -10/Materials Mutant | -10/Subcaves Mutant | -9/Recycling Mutant | -9/Scraptown Mutant | -6/Factory Scavenger-Mutant | -6/Extension Scavenger-Mutant | -6/Cetus Scavenger-Tank | -5/Factory Scavenger-Tank | -4/Factory Resources | -11 -10 -10 -9 -9 -6 -6 -6 -5 -4 ----------- Run | Yrd Mat Sub Rec Scr Fac Ext Cet Fac Fac Matter Collected 2532 | 231 204 319 225 30 291 618 357 150 107 Remotely . | . . . . . . . . . . Salvage Created 3405 | 125 337 608 110 . 459 585 179 337 665 Parts 190 | 11 26 41 4 . 23 25 8 22 30 Haulers Intercepted . | . . . . . . . . . . Recyclers Shooed 2 | 1 1 . . . . . . . . Parts Field Recycled . | . . . . . . . . . . Retrieved Matter . | . . . . . . . . . . Parts Self-Destructed 18 | . . 18 . . . . . . . Prevented . | . . . . . . . . . . Kills | -11 -10 -10 -9 -9 -6 -6 -6 -5 -4 ------- Run | Yrd Mat Sub Rec Scr Fac Ext Cet Fac Fac Combat Hostiles Destroyed 74 | . 10 16 1 . 8 10 3 10 16 Melee 7 | . . . . . 3 4 . . . Guns 18 | . 3 2 . . . . 1 7 5 Cannons 21 | . 5 12 . . 2 . 2 . . AOE 26 | . 2 . 1 . 3 6 . 3 11 Classes Destroyed 16 | 2 4 2 1 . 3 1 . 1 2 Worker 6 | 1 . . . . 3 1 . . 1 Builder 2 | . . . . . 2 . . . . Tunneler 5 | 4 . . . . 1 . . . . Recycler 4 | . 1 . 1 . 1 1 . . . Operator 1 | . 1 . . . . . . . . Turret 2 | . . 2 . . . . . . . Swarmer 20 | . 3 2 . . 4 3 . 4 4 Grunt 22 | . 7 . . . . 4 1 5 5 Duelist 1 | . . . . . . 1 . . . Protector 1 | . . . . . . . . 1 . Sentry 5 | . . . 1 . 2 2 . . . Specialist 2 | . . . . . . . . . 2 Hunter 3 | . . . . . 1 . . . 2 Programmer 3 | . . . . . 1 . . . 2 Behemoth 1 | . . . . . . . . . 1 Cetus Guard 2 | . . . . . . . 2 . . Enhanced Grunt 2 | . . . . . . . . . 2 Subdweller 14 | . . 14 . . . . . . . Thug 1 | . . . . . . 1 . . . Best Kill Streak 10 | 3 4 7 1 . 4 4 1 7 10 Combat Bots Only 9 | . 3 7 1 . 4 3 1 7 9 Max Kills in Single Turn 8 | 1 2 1 1 . 3 5 1 3 8 Gunslinging 2 | . 1 . . . . . . 2 1 Exploded 7 | . 2 . 1 . 3 3 . 3 7 Melee 1 | . . . . . 1 1 . . . Uniques/NPCs Destroyed . | . . . . . . . . . . Combat | -11 -10 -10 -9 -9 -6 -6 -6 -5 -4 -------- Run | Yrd Mat Sub Rec Scr Fac Ext Cet Fac Fac Hostile Shots Fired 886 | . 54 69 . . 254 159 34 21 295 Missed 310 | . 17 20 . . 82 71 14 8 98 Hits 576 | . 37 49 . . 172 88 20 13 197 Melee 5 | . . . . . . 5 . . . Projectile 571 | . 37 49 . . 172 83 20 13 197 AOE 4 | . . . . . . . . . 4 Critical Strikes 18 | . 1 1 . . 1 1 2 . 12 Part Disruptions 2 | . . . . . . . . . 2 Damage Taken 10282 | . 463 877 58 . 2325 1209 453 411 4486 Core 2017 | . 82 25 58 . 475 204 12 . 1161 Absorbed by Shields 535 | . . . . . . 435 100 . . Regen/Repaired (Parts) 8 | . . . . . 8 . . . . Core Remaining (%) 63 | 100 . . . 34 . . 18 100 . Volleys Fired 235 | 15 40 61 4 . 13 4 19 20 59 Largest 3 | 2 2 2 2 . 1 1 2 3 3 Hottest 303 | 60 70 113 73 . 44 50 96 303 240 Shots Fired 396 | 29 78 99 5 . 13 4 36 44 88 Gun 234 | 29 52 14 . . . . 11 43 85 Cannon 138 | . 26 79 1 . 9 . 23 . . Launcher 19 | . . 6 4 . 2 4 . 1 2 Special 5 | . . . . . 2 . 2 . 1 Kinetic 216 | 14 47 49 5 . 11 . 34 24 32 Thermal 122 | . . 50 . . . . . 19 53 Explosive 7 | . . . . . . 4 . 1 2 Electromagnetic 46 | 15 31 . . . . . . . . Impact 2 | . . . . . 2 . . . . Robot Hit Streak 12 | 12 12 11 1 . 10 1 5 6 9 Robot Miss Streak 16 | 1 3 3 1 . 6 16 6 3 7 Penetration Max 1 | . . . . . . . 1 . 1 Secondary Targets 5 | . 1 . . . . . . 3 1 Max Gunslinging Chain 2 | . 1 . . . . . . 2 1 Shots Hit Robots 228 | 20 44 43 1 . 35 18 17 21 29 Core Hits 219 | 6 18 23 2 . 26 40 8 32 64 Critical Kills 3 | . . 2 . . . . 1 . . Critical Parts Destroyed 6 | . . . . . . . 4 1 1 Critical Strikes 13 | 1 . 2 . . 2 . 5 1 2 Meltdown 2 | . . 2 . . . . . . . Destroy 8 | . . . . . . . 5 1 2 Corrupt 1 | 1 . . . . . . . . . Melee Attacks 78 | . . . . . 39 39 . . . Impact . | . . . . . . . . . . Slashing 78 | . . . . . 39 39 . . . Piercing . | . . . . . . . . . . Sneak Attacks 10 | . . . . . 9 1 . . . Combat Hostiles . | . . . . . . . . . . Follow-up Attacks 1 | . . . . . 1 . . . . Damage Inflicted 10994 | 227 687 1304 109 . 1812 1770 600 1246 3239 Guns 2210 | 225 270 126 . . . . 246 592 751 Cannons 1847 | . 348 914 . . 231 . 354 . . Explosions 4909 | . 64 264 109 . 260 1105 . 642 2465 Melee 1985 | . . . . . 1320 665 . . . Ramming 43 | 2 5 . . . 1 . . 12 23 Kinetic 3206 | 67 427 670 109 . 491 . 600 313 529 Thermal 1474 | . 64 634 . . . . . 279 497 Explosive 3937 | . . . . . . 1105 . 642 2190 Electromagnetic 349 | 158 191 . . . . . . . . Impact . | . . . . . . . . . . Slashing 1985 | . . . . . 1320 665 . . . Piercing . | . . . . . . . . . . Highest Corruption 32 | . 4 4 4 . 3 7 32 . 7 Average Corruption 5 | . 3 4 4 . 2 3 19 . 3 Corruption Purged 7 | . . . . . 3 4 . . . Corruption Blocked . | . . . . . . . . . . Effects 97 | . 5 43 7 . 7 8 21 . 6 Message Errors 25 | . 2 8 1 . 2 1 9 . 2 Matter Fused 23 | . . 11 1 . 1 2 7 . 1 Heat Flow Errors 15 | . 1 7 2 . . 1 3 . 1 Energy Discharges 13 | . . 7 . . 3 1 1 . 1 Parts Rejected 1 | . . . . . . 1 . . . Parts Fused 2 | . . 2 . . . . . . . Data Loss (minor) 10 | . 1 4 2 . . 2 . . 1 Data Loss (major) 2 | . . 1 . . 1 . . . . Misfires 1 | . 1 . . . . . . . . Alerts 4 | . . 3 1 . . . . . . Misdirections 1 | . . . . . . . 1 . . Overload Shots 4 | . . . . . . . . 1 3 Effects 1 | . . . . . . . . . 1 Energy Bleed 1 | . . . . . . . . . 1 Overflow Damage 385 | . . 12 7 . 250 52 . . 64 Projectiles 5 | . . 5 . . . . . . . Explosions 103 | . . 7 7 . 8 17 . . 64 Melee 277 | . . . . . 242 35 . . . Knockbacks 20 | . 8 3 . . 8 . 1 . . Impact . | . . . . . . . . . . Kinetic 19 | . 7 3 . . 8 . 1 . . Secondary 1 | . 1 . . . . . . . . Self-Inflicted Damage 530 | . 42 63 58 . 69 134 . . 164 Shots 15 | . 1 2 1 . 2 7 . . 2 Rammed 11 | 1 2 . . . 1 . . 1 6 Targets Rammed 11 | 1 2 . . . 1 . . 1 6 Kicked . | . . . . . . . . . . Crushed . | . . . . . . . . . . Highest Temperature 420 | 40 126 257 110 . . 271 250 390 420 Average Temperature 74 | 20 35 76 42 . . 132 104 94 76 Received Heat Transfer 1368 | . 189 156 . . 144 256 65 63 495 Effects 5 | . . . . . . . . 3 2 Shutdowns 2 | . . . . . . . . 1 1 Interference 2 | . . . . . . . . 2 . Damage (minor) 1 | . . . . . . . . . 1 Siege Activations . | . . . . . . . . . . Martial Activations . | . . . . . . . . . . Shielding Activations . | . . . . . . . . . . Robots Disrupted . | . . . . . . . . . . Combat Hostiles . | . . . . . . . . . . Robots Corrupted . | . . . . . . . . . . Combat Hostiles . | . . . . . . . . . . Parts Fried 3 | 3 . . . . . . . . . Impact Corruptions . | . . . . . . . . . . Robots Melted 2 | . . 2 . . . . . . . Combat Hostiles 2 | . . 2 . . . . . . . Parts Melted 6 | . . 4 . . . 2 . . . Heat Transferred 1830 | . 100 851 . . . . . 333 546 Parts Sabotaged . | . . . . . . . . . . Parts Stolen . | . . . . . . . . . . Parts Stripped . | . . . . . . . . . . Power Chain Reactions 1 | . 1 . . . . . . . . Alert | -11 -10 -10 -9 -9 -6 -6 -6 -5 -4 ------- Run | Yrd Mat Sub Rec Scr Fac Ext Cet Fac Fac Maximum Alert Level 5 | . . . . . . 3 2 5 4 Low Security (%) 51 | 100 100 . 100 . 100 53 . 2 . Level 1 18 | . . . . . . 38 38 66 . Level 2 6 | . . . . . . 6 61 1 . Level 3 3 | . . . . . . 2 . 7 12 Level 4 17 | . . . . . . . . 8 87 Level 5 . | . . . . . . . . 1 . High Security 1 | . . . . . . . . 11 . Max Security . | . . . . . . . . . . Peak Influence 2079 | 5 122 . 179 . 104 742 555 2079 1597 Initial 1100 | . . . 136 . . . 412 296 1100 Average 417 | 1 37 . 115 . 24 216 421 633 1290 Influence Increases 5844 | 25 274 320 75 . 375 1330 441 2083 921 Destroy 0b10 Robot/C 2160 | . 200 80 20 . 160 600 220 560 320 Destroy 0b10 Robot/NC 185 | 25 10 . 5 . 35 20 10 70 10 Destroy Leader 332 | . 40 . . . 50 72 10 100 60 Allied During Kill 1410 | . . . . . . 466 178 726 40 Successful Hack 35 | . 6 . . . . 21 8 . . Disable Machine 510 | . 15 . . . . 30 . 225 240 Anti-Garrison Action 150 | . . . . . . . . 150 . Destroy Structure 627 | . 3 . 50 . 25 76 15 252 206 Partial Spotted 90 | . . . . . 60 30 . . . Lose Combat Pursuer 345 | . . 240 . . 45 15 . . 45 Influence Decreases 4463 | 25 168 140 300 61 375 594 646 535 1619 Entered New Map 1883 | . . 52 150 61 . . 324 235 1061 Time Decay 1913 | 25 148 78 150 . 248 374 222 270 398 Lost Part 323 | . 20 10 . . 63 60 20 10 140 Lost Ally 280 | . . . . . . 160 80 20 20 Purge Threat 64 | . . . . . 64 . . . . Squads Dispatched 19 | . 1 . . . 3 2 1 7 5 Investigation 9 | . 1 . . . 1 2 1 3 1 Extermination 4 | . . . . . 2 . . . 2 Reinforcement 3 | . . . . . . . . 1 2 Assault 2 | . . . . . . . . 2 . Garrison 1 | . . . . . . . . 1 . Intercept . | . . . . . . . . . . Searches Triggered . | . . . . . . . . . . Construction Impeded 1 | . . . . . . . . 1 . Haulers Reinforced . | . . . . . . . . . . Active Scanning Responses . | . . . . . . . . . . Cargo Convoy Interrupts 1 | . . . . . . . . . 1 Stealth | -11 -10 -10 -9 -9 -6 -6 -6 -5 -4 --------- Run | Yrd Mat Sub Rec Scr Fac Ext Cet Fac Fac Distress Signals 13 | . 1 . . . . 4 2 3 3 Communications Jammed . | . . . . . . . . . . Distress Signals . | . . . . . . . . . . Times Spotted 172 | . 19 29 . . 20 26 12 29 37 Peak Tracking Total 9 | . 4 6 . . 6 7 5 6 9 Tactical Retreats 8 | . . 4 . . 1 1 . . 2 Traps | -11 -10 -10 -9 -9 -6 -6 -6 -5 -4 ------- Run | Yrd Mat Sub Rec Scr Fac Ext Cet Fac Fac Traps Triggered 7 | . 2 2 . . 2 1 . . . Indirectly . | . . . . . . . . . . Trap Hack Attempts . | . . . . . . . . . . Triggered . | . . . . . . . . . . Disarmed . | . . . . . . . . . . Reprogrammed . | . . . . . . . . . . Reused . | . . . . . . . . . . Traps Extracted . | . . . . . . . . . . Installed . | . . . . . . . . . . Triggered . | . . . . . . . . . . Machines | -11 -10 -10 -9 -9 -6 -6 -6 -5 -4 ---------- Run | Yrd Mat Sub Rec Scr Fac Ext Cet Fac Fac Machines Disabled 42 | . 2 5 . . . 3 . 16 16 Max in Single Turn 10 | . 1 3 . . . 1 . 1 10 Garrison Access 4 | . . . . . . . . 2 2 Energy Cycler 1 | . . . . . . 1 . . . Machines Repaired . | . . . . . . . . . . Machines Dismantled . | . . . . . . . . . . Machines Sabotaged . | . . . . . . . . . . Overloaded Fab Kills . | . . . . . . . . . . Hacking | -11 -10 -10 -9 -9 -6 -6 -6 -5 -4 --------- Run | Yrd Mat Sub Rec Scr Fac Ext Cet Fac Fac Machines Accessed 30 | . 2 1 2 5 3 6 1 5 5 Terminals 15 | . 2 . 1 . 2 6 1 1 2 Fabricators . | . . . . . . . . . . Repair Stations . | . . . . . . . . . . Recycling Units 4 | . . . 1 . . . . 2 1 Scanalyzers . | . . . . . . . . . . Garrison Access 5 | . . . . . 1 . . 2 2 Total Hacks 72 | . 4 1 2 18 7 19 3 7 11 Successful 36 | . 1 1 2 18 1 5 1 3 4 Failed 36 | . 3 . . . 6 14 2 4 7 Catastrophic 13 | . 1 . . . 3 3 2 2 2 Database Lockouts . | . . . . . . . . . . Manual 20 | . 4 . . . 2 5 1 4 4 Terminals 38 | . 4 . 1 . 4 19 3 1 6 Fabricators . | . . . . . . . . . . Repair Stations . | . . . . . . . . . . Recycling Units 7 | . . . 1 . . . . 3 3 Scanalyzers . | . . . . . . . . . . Garrison Access 8 | . . . . . 3 . . 3 2 Terminal Hacks 29 | . . 1 1 18 1 5 1 . 2 Record 8 | . . . 1 7 . . . . . Robot Analysis 9 | . . . . 9 . . . . . Open Door 6 | . . . . 1 . 4 1 . . Level Access Points 1 | . . . . . . . . . 1 Alert Level 2 | . . . . . . 1 . . 1 Unreport Threat 1 | . . . . . 1 . . . . Proto ID Catalog 2 | . . 1 . 1 . . . . . Fabricator Hacks . | . . . . . . . . . . Repair Station Hacks . | . . . . . . . . . . Recycling Unit Hacks 1 | . . . 1 . . . . . . Retrieve Components 1 | . . . 1 . . . . . . Scanalyzer . | . . . . . . . . . . Garrison Access Hacks 3 | . . . . . . . . 1 2 Seal Access 3 | . . . . . . . . 1 2 Unauthorized Hacks 3 | . 1 . . . . . . 2 . Terminals 1 | . 1 . . . . . . . . Assimilate 1 | . 1 . . . . . . . . Fabricators . | . . . . . . . . . . Repair Stations . | . . . . . . . . . . Recycling Units 2 | . . . . . . . . 2 . Fedlink 2 | . . . . . . . . 2 . Scanalyzers . | . . . . . . . . . . Garrison Access . | . . . . . . . . . . Data Cores Recovered . | . . . . . . . . . . Used . | . . . . . . . . . . Hacking Detections 18 | . 2 . . . 3 6 1 3 3 Full Trace Events 5 | . 1 . . . . 1 1 1 1 Feedback Events 1 | . . . . . . . . . 1 Corruption 1 | . . . . . . . . . 1 Feedback Blocked . | . . . . . . . . . . Robot Schematics Acquired . | . . . . . . . . . . Robots Built . | . . . . . . . . . . Authchips . | . . . . . . . . . . Time . | . . . . . . . . . . Total Robot Build Rating . | . . . . . . . . . . Part Schematics Acquired . | . . . . . . . . . . Parts Built . | . . . . . . . . . . Authchips . | . . . . . . . . . . Time . | . . . . . . . . . . Total Part Build Rating . | . . . . . . . . . . Parts Repaired . | . . . . . . . . . . Time . | . . . . . . . . . . Parts Recycled . | . . . . . . . . . . Recycled Matter . | . . . . . . . . . . Retrieved Matter . | . . . . . . . . . . Retrieved Components 2 | . . . 2 . . . . . . Parts Scanalyzed . | . . . . . . . . . . Part Schematics Acquired . | . . . . . . . . . . Parts Damaged . | . . . . . . . . . . Bothacking | -11 -10 -10 -9 -9 -6 -6 -6 -5 -4 ------------ Run | Yrd Mat Sub Rec Scr Fac Ext Cet Fac Fac Used RIF Installer . | . . . . . . . . . . Robots Hacked . | . . . . . . . . . . Non-combat . | . . . . . . . . . . Combat . | . . . . . . . . . . Robot Hacks Applied . | . . . . . . . . . . Relay Couplers Released 2 | . . . . . . . . 2 . Machine Destruction 2 | . . . . . . . . 2 . Fabnet Peak Effective % . | . . . . . . . . . . Robots Rewired 13 | . . . . . . 13 . . . Allies Hacked . | . . . . . . . . . . Hacks Repelled . | . . . . . . . . . . Allies | -11 -10 -10 -9 -9 -6 -6 -6 -5 -4 -------- Run | Yrd Mat Sub Rec Scr Fac Ext Cet Fac Fac Total Allies 23 | . . . . . . 18 5 . . Largest Group 12 | . . . . . . 12 9 9 3 Highest-Rated Group 716 | . . . . . . 502 716 716 274 Highest-Rated Ally 159 | . . . . . . 159 159 143 96 Total Orders 3 | . . . . . . 1 . . 2 STAY 2 | . . . . . . 1 . . 1 FOLLOW 1 | . . . . . . . . . 1 Ally Attacks 355 | . . . . . . 128 81 122 24 Total Damage 10701 | . . . . . . 2856 1824 5317 704 Kills 70 | . . . . . . 23 10 36 1 Allies Corrupted . | . . . . . . . . . . Allies Melted 1 | . . . . . . 1 . . . Intel | -11 -10 -10 -9 -9 -6 -6 -6 -5 -4 ------- Run | Yrd Mat Sub Rec Scr Fac Ext Cet Fac Fac Active Infowar (turns) 3028 | 38 509 2 . . 978 873 73 . 555 Optics 1545 | . . . . . 599 873 73 . . Sensors 2035 | . . . . . 978 502 . . 555 Terrain 215 | . . . . . 215 . . . . Seismic 549 | 38 509 2 . . . . . . . Robot Analysis Total 9 | . . . . 9 . . . . . Derelict Logs Recovered 3 | . . 1 . 2 . . . . . Drone Launches . | . . . . . . . . . . Drone Recoveries . | . . . . . . . . . . Exploration | -11 -10 -10 -9 -9 -6 -6 -6 -5 -4 ------------- Run | Yrd Mat Sub Rec Scr Fac Ext Cet Fac Fac Turns Passed 8792 | 202 509 1935 316 1808 1075 873 468 657 949 Spaces Moved 6077 | 94 213 1388 263 1488 833 627 231 360 580 Core 132 | 4 . . . 1 4 115 . . 8 Treads 1275 | 89 185 . . 3 9 81 203 360 345 Legs 276 | . . . . . . 248 28 . . Wheels 3271 | 1 28 1388 263 1484 107 . . . . Hover 227 | . . . . . . . . . 227 Flight 896 | . . . . . 713 183 . . . Fastest Speed 37 | 50 110 110 100 105 37 37 120 160 50 Average Speed 118 | 154 154 123 112 120 86 91 155 160 119 Slowest Speed 700 | 160 160 125 125 600 700 240 160 160 240 Overloaded Moves . | . . . . . . . . . . Propulsion Burnouts . | . . . . . . . . . . Robots Hopped 11 | . . . . . 11 . . . . Potential Cave-ins 20 | . . . . . . 14 . . 6 Cave-ins Triggered 1 | . . . . . . 1 . . . Exploration Rate (%) 45 | 6 44 66 37 90 26 64 80 17 20 Regions Visited 9 Branch Regions 5 Pre-discovered Areas 1 | . . . . . . . . 1 . Known Exits Taken 1 | . . . . . 1 . . . . Unknown Exits Taken 8 | 1 1 1 1 1 . 1 1 1 . Scrap Searched 12 | . . 8 . 4 . . . . . Spaces Dug 164 | . . 2 . . 6 120 . 4 32 Terrain Destroyed 530 | . 2 84 70 . 29 168 10 43 124 Melee 15 | . . . . . 6 9 . . . Projectile 72 | . . 13 . . 1 . 10 14 34 AOE 443 | . 2 71 70 . 22 159 . 29 90 Terrain Rammed . | . . . . . . . . . . Walls Destroyed . | . . . . . . . . . . Machines Disabled . | . . . . . . . . . . Actions | -11 -10 -10 -9 -9 -6 -6 -6 -5 -4 --------- Run | Yrd Mat Sub Rec Scr Fac Ext Cet Fac Fac Total 7167 | 121 319 1507 277 1504 1099 867 307 404 762 Wait 353 | . 55 22 6 . 166 4 30 1 69 Move 6047 | 94 212 1387 262 1487 811 625 230 359 580 Hop 10 | . . . . . 10 . . . . Pick Up 68 | 3 5 5 . 6 8 14 4 9 14 Fast Attach 56 | 8 . 3 2 3 14 15 4 3 4 Attach 36 | . 2 1 . 1 15 5 4 . 8 Detach 25 | 1 . 1 . 1 7 2 5 1 7 Swap 36 | . 2 3 1 2 4 11 4 5 4 Drop 68 | . 1 11 2 4 5 22 7 5 11 Fire 235 | 15 40 61 4 . 13 4 19 20 59 Melee 77 | . . . . . 38 39 . . . Ram 8 | . 1 . . . 1 . . . 6 Kick . | . . . . . . . . . . Crush 2 | . 1 . . . . . . 1 . Escape Stasis 26 | . . . . . 7 19 . . . Rewire 107 | . . . . . . 107 . . . Trap . | . . . . . . . . . . Miscellaneous 13 | . . 13 . . . . . . . Route ------- -11/Scrapyard -10/Materials (discovered 3 exits: [*Mat] / [*Min] / *Sub) -10/Subcaves (discovered 2 exits: [*Mat] / *Rec) -9/Recycling -9/Scraptown (discovered 2 exits: *Fac x2) -6/Factory (discovered 3 exits: *Fac / [*Low] / *Ext) -6/Extension (discovered 2 exits: *Fac / *Cet) -6/Cetus (discovered 2 exits: *Fac / [*Arc]) -5/Factory -4/Factory (discovered 4 exits: *Res x4) History --------- Turn | Location | Event 14 | -11/Scrapyard | Discovered new exit (range 15) 203 | -11/Scrapyard | Entered Materials 340 | -10/Materials | Build established: Mutant 378 | -10/Materials | Discovered new exit (range 16) 577 | -10/Materials | Discovered new exit (range 14) 709 | -10/Materials | Discovered new exit (range 3) 712 | -10/Materials | Entered Subcaves 712 | -10/Subcaves | Learned Materials emergency access door positions 786 | -10/Subcaves | Disturbed a concealed Subdweller 916 | -10/Subcaves | Ambushed by swarm of Subdwellers 919 | -10/Subcaves | Ambushed by Subdwellers from Twisted Machinery 965 | -10/Subcaves | Destroyed 7 combat bots 1080 | -10/Subcaves | Shifting Twisted Machinery released Piercing Trap 1195 | -10/Subcaves | Shifting Twisted Machinery released Sub. Laser 1418 | -10/Subcaves | Discovered new exit (range 11) 1943 | -10/Subcaves | A swath of the cavern ceiling suddenly collapsed 2379 | -10/Subcaves | Visited 4L-MR0's lab 2390 | -10/Subcaves | Found Gun Armor 2601 | -10/Subcaves | Discovered new exit (range 13) 2647 | -10/Subcaves | Entered Recycling 2893 | -9/Recycling | Core integrity fell below 50% 2926 | -9/Recycling | Scanned before Scraplab entrance 2942 | -9/Recycling | Entered Scraplab 2952 | -9/Recycling | Discovered new exit (range 4) 2963 | -9/Recycling | Entered Scraptown 2963 | -9/Scraptown | System corruption cleaned by C-Scrubber 3184 | -9/Scraptown | Scanned Subdweller tech in exchange for log data 3189 | -9/Scraptown | Learned location of 1 exit from Upper Caves 3206 | -9/Scraptown | Discovered new exit (range 7) 3322 | -9/Scraptown | Visited Spacefarers 3591 | -9/Scraptown | Visited IN-MT5's Study 3618 | -9/Scraptown | Visited Red Mages 3705 | -9/Scraptown | Visited Comm Corps 3773 | -9/Scraptown | Visited Observation Area 3811 | -9/Scraptown | Visited TADAMA 3852 | -9/Scraptown | Visited UFD Registry 3863 | -9/Scraptown | Registered with UFD as "Cargotorch" 3894 | -9/Scraptown | Visited Abandonware Association 3909 | -9/Scraptown | Learned abandonware demo "HACKBUD.EXE" 3909 | -9/Scraptown | Learned abandonware demo "SHUTEYE.EXE" 3937 | -9/Scraptown | Visited Infowarlord's Domain 3966 | -9/Scraptown | Visited Botcube Research 4009 | -9/Scraptown | Delivered Scrap Shield to a Scientist 4155 | -9/Scraptown | Found Exp. Sensor Array 4284 | -9/Scraptown | Visited Junk Cannon Lab 4290 | -9/Scraptown | Found Prototype Special Weapon 4329 | -9/Scraptown | Visited Analyses Database 4402 | -9/Scraptown | Visited Scrapoid Research Area 4432 | -9/Scraptown | Visited Sword Containment 4476 | -9/Scraptown | Visited Scrap Suit Storage 4484 | -9/Scraptown | Found Scrap Suit 4508 | -9/Scraptown | Visited Chapter 10 4546 | -9/Scraptown | Visited Science Guys 4688 | -9/Scraptown | Met Optimus 4688 | -9/Scraptown | Accepted into 0bPrime 4766 | -9/Scraptown | Discovered new exit (range 5) 4771 | -9/Scraptown | Entered Factory 4771 | -6/Factory | Evolved 8 slots: Power x1, Propulsion x3, Utility x4 4772 | -6/Factory | Identified exit to Extension 4772 | -6/Factory | Attached Gun Armor, gained temporary slots: Weapon x2 4891 | -6/Factory | Lost 4 parts (3n1w) 5300 | -6/Factory | Discovered new exit (range 15) 5365 | -6/Factory | Identified Junk Cannon 5440 | -6/Factory | Lost 10 parts (3p3n3u1w) 5632 | -6/Factory | Spotted B-75 Beast 5786 | -6/Factory | Discovered new exit (range 5) 5799 | -6/Factory | Found Prototype Launcher 5822 | -6/Factory | Core integrity fell below 50% 5846 | -6/Factory | Entered Extension 5863 | -6/Extension | Rescued a captive Derelict 5882 | -6/Extension | Rescued A7 5918 | -6/Extension | Energy Cycler disabled 5919 | -6/Extension | Rescued a captive Derelict 5919 | -6/Extension | Rescued a captive Derelict 5919 | -6/Extension | Rescued a captive Derelict 5919 | -6/Extension | Rescued a captive Derelict 5919 | -6/Extension | Rescued a captive Derelict 5920 | -6/Extension | Rescued a captive Derelict 5921 | -6/Extension | Rescued a captive Derelict 5926 | -6/Extension | Rescued a captive Derelict 5942 | -6/Extension | Rescued a captive Derelict 6032 | -6/Extension | Identified Scatter Rocket Array 6659 | -6/Extension | Crushed by falling debris 6671 | -6/Extension | Discovered new exit (range 10) 6672 | -6/Extension | Discovered new exit (range 6) 6677 | -6/Extension | Disrupted transfer network 6719 | -6/Extension | Entered Cetus 6719 | -6/Cetus | Accompanied by 8 allies (A7) 6724 | -6/Cetus | Acquired a Cetus Manufacturing Module code from A7 6728 | -6/Cetus | Lost 3 allies 6735 | -6/Cetus | Spotted Cetus Guard 6735 | -6/Cetus | Spotted Cetus Guard 6741 | -6/Cetus | Spotted Cetus Guard 6742 | -6/Cetus | Spotted Cetus Guard 6763 | -6/Cetus | Allies destroyed Cetus Guard 6768 | -6/Cetus | Destroyed Cetus Guard 6771 | -6/Cetus | Allies destroyed Cetus Guard 6771 | -6/Cetus | Allies destroyed Cetus Guard 6783 | -6/Cetus | System corruption reached 10% 6800 | -6/Cetus | Lost 3 allies 6982 | -6/Cetus | Started Cetus Manufacturing Module 6994 | -6/Cetus | Escorted A7 to Cetus Mainframe 7003 | -6/Cetus | Build established: Scavenger-Mutant 7007 | -6/Cetus | Manufactured an Enhanced Grunt 7031 | -6/Cetus | Discovered new exit (range 15) 7032 | -6/Cetus | Manufactured an Enhanced Grunt 7057 | -6/Cetus | Manufactured an Enhanced Grunt 7082 | -6/Cetus | Manufactured an Enhanced Grunt 7086 | -6/Cetus | Spotted Cetus Guard 7086 | -6/Cetus | Spotted Cetus Guard 7090 | -6/Cetus | Destroyed Cetus Guard 7100 | -6/Cetus | Spotted Cetus Guard 7101 | -6/Cetus | Allies destroyed Cetus Guard 7102 | -6/Cetus | Core integrity fell below 20% 7105 | -6/Cetus | Allies destroyed Cetus Guard 7107 | -6/Cetus | Manufactured an Enhanced Grunt 7115 | -6/Cetus | Allies destroyed Cetus Guard 7122 | -6/Cetus | Discovered new exit (range 15) 7130 | -6/Cetus | Met Revision 17 7186 | -6/Cetus | System corruption reached 30% 7187 | -6/Cetus | Entered Factory 7187 | -5/Factory | Accompanied by 9 allies (A7) 7187 | -5/Factory | Evolved 2 slots: Propulsion x1, Weapon x1 7192 | -5/Factory | Received a hacking code to weaken MAIN.C 7312 | -5/Factory | Loaded intel: 8 recycling unit locations 7341 | -5/Factory | Learned location of Protoforge (-2) 7482 | -5/Factory | Build established: Scavenger-Tank 7680 | -5/Factory | Garrison activated, responded to threat 7683 | -5/Factory | Lost 3 allies 7769 | -5/Factory | High security lockdown imminent 7787 | -5/Factory | Destroyed 7 combat bots 7819 | -5/Factory | Discovered new exit (range 16) 7844 | -5/Factory | Entered another Factory area 7844 | -4/Factory | Accompanied by 3 allies 7844 | -4/Factory | Evolved 2 slots: Utility x2 8008 | -4/Factory | Identified exit to Research 8234 | -4/Factory | Spotted B-86 Titan 8264 | -4/Factory | Destroyed B-86 Titan 8622 | -4/Factory | Destroyed 9 combat bots 8709 | -4/Factory | Cargo convoy interrupted 8785 | -4/Factory | Core integrity fell below 50% 8787 | -4/Factory | Spotted B-86 Titan 8793 | -4/Factory | Core integrity fell below 20% 8793 | -4/Factory | Destroyed by G-67 Veteran with Field Laser Last Messages --------------- 08754_ ALERT: Suspicious activity at Recycling Unit F002. Dispatching Investigation squad. 08769_ Antigrav System destroyed. 08776_ Dropped Med. Storage Unit. 08777_ Acquired Med. Storage Unit. 08781_ Imp. Gravmag System destroyed. 08781_ Lgt. Antimatter Reactor destroyed. 08782_ Critical hit (Burn: +37). 08788_ R-10 Processor collects Unknown Hover Unit. 08788_ Hacking Suite destroyed. 08788_ P-70 Sage resets P-70 Sage, system corruption cleaned. 08788_ Gyrokinetic Inverter destroyed. 08791_ P-70 Sage resets G-67 Veteran, system corruption cleaned. 08792_ Fusion Modulator explodes. 08792_ Neutrino Reactor explodes. 08792_ Nuclear Reactor explodes. 08792_ Fusion Modulator explodes. 08792_ Matter Pump disabled. 08792_ Fusion Modulator explodes. 08792_ Terminal disabled. Map ----- +----------------------------------------------------+ | ????????????????????????????????????????????????? | | ????????????????????????????????????????????????? | | ????????????????????????????????????????????????? | | ????????????????????????????????????????????????? | | ????????????????????????????????????????????????? | | ????????????????????????????????????????????????? | | ????????????????????????????????????????????????? | | ????????????????????????????????????????????????? | | ????????????????????????????????????????????????? | | ????????????????????????????????????????????????? | | ????????????????????????????????????????????????? | | ????????????????????????????????????????????????? | | ????????????????????????????????????????????????? | | ????????????????????????????????????????????????? | | ??????????????#############+####????????????????? | | ????????????? #????????????????? | | ????????????? #????????????????? | | ????????????? < #????????????????? | | ????????????? #?#??????????????? | | ??????????????? # ###????????????? | | ????????????????# ## #?????????? | | ????????????????# #????????? | | ????????????????# #????????? | | ????????????????# +????????? | | ??????????????### ; ???????? | | ??????????????#BB @ ; ???????? | | ???? ????????#BB ; ???????? | | ???? ????????##; ; ???????? | | ???? ?????????#; % ;????????? | | ????#/?????????## % #????????? | | ????# #?????????# % ?????????? | | ????# #?????????# ?????????? | | ##### ########### g ?????????? | | ? gg ??????????? | | ??# ^ ####+#;;;;;;;;; ??????????? | | ??# #????? ## ???????????? | | ??# #????? #?? ???????????? | | ??# #????? #??????????????? | | ??# #????? +??????????????? | | ??# ^ #????? ???????????????? | | ??# ########+#????? ?????????????????? | | ??# #????????????????????????????????????? | | ??# ! #????????????????????????????????????? | | ??#] = ###??????????????????????????????????? | | ### ! #??????????????????????????????????? | | +??????????????????????????????????? | | #??????????????????????????????????? | | #??????????????????????????????????? | | #####/########??????????????????????????????????? | | ???? ??????????????????????????????????????????? | +----------------------------------------------------+ Best States ------------- Heat Dissipation 74 Energy Generation 41 Energy Capacity 560 Matter Stores 300 Matter Capacity 300 Sight Range 22 Robot Scan Range 20 Terrain Scan Range 14 Terrain Scan Density 10 Additional Mass Support 12 Armor Coverage 825 Evasion (%) 70 Armor Integrity Analysis 30 Recoil Reduction 5 Kinecelleration 40 Offensive Hacking 10 Defensive Hacking 20 Item Schematics ----------------- None Robot Schematics ------------------ None Fabricated ------------ Nothing Repaired ---------- Nothing Alien Tech Used ----------------- None Achievements -------------- Gunslinger Challenges ------------ None Game ------ Seed SurveybotDynamicAutobeam Manual? 0 Play Time 01:40:58 Cumulative 46.3 hours Start 2025.05.21 @ 13:14:26 End 2025.05.21 @ 16:37:23 Sessions 3 Manual Loads 0 Difficulty Rogue Special Mode None Game No. 34 Rogue 34 Adventurer 0 Explorer 0 Win Type - Total 4 Types 2/0/1/0/1/0/0/0/0/0 Lore% 40 Gallery% 40 Achievement% 48 Wizard Run 0 Options --------- Layout 0 ASCII 0 Keyboard 1 Movement Vi Keybinds 0 Fullscreen 2 Font 18/SmallcapsGlow Map View 76x50 Zoom Use 0% Tactical HUD 1 Map Filters NONE Filters NONE Steam 1 RUN: e5e6f158-e8f3-4ced-b1fc-ed6a9318ba64